[Event "Prague Festival Open 2022"]
[Site "Prague"]
[Date "2022.06.11"]
[Round "2.7"]
[White "Docekal, Jan"]
[Black "Santiago, Yago De Moura"]
[Result "0-1"]
[ECO "B14"]
[WhiteElo "2244"]
[BlackElo "2498"]
[Annotator "TA"]
[PlyCount "72"]
[EventDate "2022.06.10"]
[EventType "swiss"]
[EventCountry "CZE"]
[SourceTitle "playchess.com"]
[Source "ChessBase"]
[SourceQuality "1"]
[TimeControl "40/5400+30:1800+30"]

{[%evp 24,72,3,-60,-59,-36,-34,-23,-56,-56,-54,-47,-59,-83,-106,-104,-114,-88,-86,-116,-38,-600,-625,-729,-720,-2924,-503,-565,-569,-916,-655,-863,-838,-935,-916,-1958,-1690,-29973,-29973,-29971,-29972,-29972,-29972,-29968,-4938,-29970,-29970,-29973,-29975,-29991,-29992]} 1. e4 {[%emt 0:00:05]} c6 {[%emt 0:00:17]} 2. d4 {[%emt 0:00:06]} d5 {[%emt 0:00:10]} 3. exd5 {[%emt 0:00:05]} cxd5 {[%emt 0:00:08]} 4. c4 {[%emt 0:00:04]} Nf6 {[%emt 0:00:15]} 5. Nc3 {[%emt 0:00:04]} e6 {[%emt 0:00:45]} 6. c5 {[%emt 0:00:15]} Be7 {[%emt 0:01:49]} 7. Nf3 {[%emt 0:00:07]} b6 {[%emt 0:00:22]} 8. b4 {[%emt 0:00:12]} O-O {[%emt 0:06:34]} 9. Bd3 {[%emt 0:00:36]} a5 {[%emt 0:00:53]} 10. Na4 {[%emt 0:00:05]} Nbd7 {[%emt 0:00:34]} 11. a3 {[%emt 0:02:53]} axb4 {[%emt 0:00:24]} 12. axb4 {[%emt 0:00:03]} bxc5 {[%emt 0:00:26]} 13. bxc5 {[%emt 0:00:04]} (13. dxc5 $11 e5 14. Be2) 13... e5 $1 $15 {[%emt 0:01:19] B14: Caro-Kann: Panov-Botvinnik Attack with 5...e6 and 5...g6.} 14. Nxe5 {[%emt 0:00:06]} Nxe5 {[%emt 0:01:34]} 15. dxe5 {[%emt 0:00:05]} Ne4 {[%emt 0:01:33] Black has an edge.} 16. O-O $1 {[%emt 0:00:10]} Nxc5 {[%emt 0:01:03]} (16... Bxc5 17. Qc2 Ba7 18. Bxe4 dxe4 19. Ba3 $11 (19. Qxe4 Ba6 $11)) 17. Bc2 {[%emt 0:00:05]} d4 {[%emt 0:04:53][%cal Bd5d4,Bd4d3][%mdl 32] [#] Against Be3. And now ...d3 would win.} 18. Bb2 $146 {[%emt 0:00:25]} ({Predecessor:} 18. Ba3 Ne6 19. Qd3 g6 20. Bxe7 Qxe7 21. Qg3 Ng7 22. f4 Bf5 23. Bxf5 Nxf5 24. Qf3 {0-1 (40) Kahl,K (2239)-Winiger,A (2296) Remote email 2013}) 18... Ba6 $36 {[%emt 0:03:44][%mdl 2048] Black is on the roll.} 19. Re1 {[%emt 0:07:27]} d3 {[%emt 0:02:05]} 20. Nxc5 {[%emt 0:08:06]} Bxc5 {[%emt 0:00:54]} 21. Bb3 {[%emt 0:00:20] [#] Strongly threatening e6.} Qb6 {[%emt 0:14:52]} (21... d2 $17 22. Re4 Bb7 23. Rxa8 Bxa8) 22. Re4 {[%emt 0:36:56][%mdl 8192] Now White is beyond hope.} (22. e6 $15 Bxf2+ 23. Kh1 Bxe1 24. exf7+ Kh8 25. Qxe1) 22... Rfb8 $19 {[%emt 0:11:18]} 23. Bd5 {[%emt 0:17:02]} Qxb2 {[%emt 0:02:15]} 24. e6 {[%emt 0:01:28]} Ra7 {[%emt 0:09:37]} (24... Bb7 $142 25. exf7+ Kf8 26. Re8+ Rxe8 27. fxe8=Q+ Kxe8 28. Qe1+ Qe2 29. Qxe2+ dxe2) 25. exf7+ {[%emt 0:02:22]} Kf8 {[%emt 0:03:17]} 26. Rb1 {[%emt 0:05:35]} Qxf2+ {[%emt 0:07:17]} ({Stronger than} 26... Qxb1 27. Re8+ Rxe8 28. fxe8=Q+ (28. Qxb1 $2 {too greedy.} Rd8 $19) (28. fxe8=R+ Kxe8 29. Qxb1 Re7 $11) 28... Kxe8 29. Qxb1 $11) (26... Bxf2+ 27. Kh1 Qxb1 28. Re8+ Rxe8 29. fxe8=Q+ Kxe8 30. Qxb1 $11) 27. Kh1 {[%emt 0:00:04]} Rd8 {[%emt 0:07:11] Hoping for ...d2.} 28. Qh5 {[%emt 0:00:58]} Rxf7 {[%emt 0:01:37]} 29. Bxf7 {[%emt 0:01:43] [#]} Bb7 $1 {[%emt 0:00:37] Active counter play!} 30. Qg5 {[%emt 0:15:08]} Bxe4 {[%emt 0:00:43] A strong pair of Bishops.} 31. Qxd8+ {[%emt 0:00:52]} Kxf7 {[%emt 0:00:08][%csl Gf2][%cal Re4g2]} 32. Qd7+ {[%emt 0:00:47]} Be7 {[%emt 0:00:22][%csl Gf2][%cal Re4g2]} 33. Qg4 {[%emt 0:00:20]} Qf5 {[%emt 0:00:17]} (33... Qe2 $142 34. Qf4+ Ke6 35. Qf1 Qxf1+ 36. Rxf1 d2 37. Rd1 Bg5 38. Kg1 Be3+ 39. Kh1 Kf5 40. h3 Bc2 41. Rxd2 Bxd2 42. g3 Be4+ 43. Kg1 Be3+ 44. Kf1 Bd3+ 45. Kg2 Be2 46. g4+ Kf4 47. g5 Bf3+ 48. Kf1 Kxg5 49. Ke1 Kh4 50. Kf1 Kxh3 51. Ke1 g5 52. Kf1 g4 53. Ke1 g3 54. Kf1 g2+ 55. Ke1 g1=Q#) 34. Qd1 {[%emt 0:01:20]} h5 {[%emt 0:01:09] Black mates.} 35. Qg1 {[%emt 0:01:18]} Bc5 {[%emt 0:00:14]} 36. Qe1 {[%emt 0:00:21]} d2 {[%emt 0:00:15] Weighted Error Value: White=1.50/Black=0.66} 0-1

[Event "Prague Festival Open 2022"]
[Site "Prague"]
[Date "2022.06.11"]
[Round "2.8"]
[White "Sankalp Gupta"]
[Black "Ludvik, Tomas"]
[Result "1-0"]
[ECO "C08"]
[WhiteElo "2505"]
[BlackElo "2233"]
[Annotator "TA"]
[PlyCount "55"]
[EventDate "2022.06.10"]
[EventType "swiss"]
[EventCountry "CZE"]
[SourceTitle "playchess.com"]
[Source "ChessBase"]
[SourceQuality "1"]
[TimeControl "40/5400+30:1800+30"]

{[%evp 16,55,24,16,26,12,19,0,11,13,17,0,30,34,33,29,24,23,81,82,77,81,214,214,308,266,371,362,507,507,625,625,877,877,1052,1050,1298,1275,1224,1216,1173,1068]} 1. e4 {[%emt 0:10:12]} e6 {[%emt 0:00:14]} 2. d4 {[%emt 0:00:22]} d5 {[%emt 0:00:05]} 3. Nd2 {[%emt 0:00:53]} a6 {[%emt 0:00:27]} 4. Bd3 {[%emt 0:03:05]} c5 {[%emt 0:00:09]} 5. dxc5 {[%emt 0:01:19]} Bxc5 {[%emt 0:00:07]} 6. exd5 {[%emt 0:06:54]} exd5 {[%emt 0:00:53]} 7. Nb3 {[%emt 0:00:41]} Bb6 {[%emt 0:01:29]} 8. Nf3 {[%emt 0:02:02]} Qe7+ {[%emt 0:01:26]} 9. Qe2 {[%emt 0:02:19] 9.Be2 is not played anymore.} Nc6 {[%emt 0:02:07] [#] C08: French Tarrasch: 3...c5 4 exd5 exd5 sidelines.} 10. Bf4 $146 {[%emt 0:06:02]} ({Predecessor:} 10. Qxe7+ Ngxe7 11. c3 Bg4 12. Be2 O-O 13. h3 Bd7 14. Bf4 Ng6 15. Be3 Bxe3 16. fxe3 {1-0 (56) Sanal,V (2557)-Shipov,S (2541) Chess.com INT 2020}) 10... Qxe2+ {[%emt 0:06:46]} (10... Bg4 {with more complications.} 11. O-O Qxe2 12. Bxe2 Nf6) 11. Bxe2 {[%emt 0:02:28]} Bg4 {[%emt 0:02:50] The position is equal.} 12. h3 {[%emt 0:02:20]} Bh5 {[%emt 0:01:16]} 13. O-O-O {[%emt 0:02:26]} O-O-O {[%emt 0:00:48]} 14. g4 {[%emt 0:01:46][%cal Bg2g4,Bg4g5][%mdl 32]} Bg6 {[%emt 0:00:17]} 15. Nfd4 {[%emt 0:05:19]} Nxd4 {[%emt 0:05:01]} 16. Nxd4 {[%emt 0:00:02]} Nf6 {[%emt 0:00:48] [#]} (16... h5 $11 {remains equal.}) 17. g5 $1 $16 {[%emt 0:01:47]} Nd7 {[%emt 0:04:59]} 18. h4 $36 {[%emt 0:00:14][%cal Bh3h4,Bh4h5,Bh5h6,Bh6g7][%mdl 2080] aiming for Bg4. White is in control. White is more active.} Rhe8 {[%emt 0:06:02] [#] Black cannot hold the game after this.} (18... Rde8 $16 19. Bf3 Be4) 19. Rh3 $1 $18 {[%emt 0:03:53][%cal Bh1h3,Bh3c3,Bc3e3][%mdl 32] Hoping for Rc3+.} Ne5 {[%emt 0:11:06]} (19... Bxd4 $142 20. Rxd4 b5) 20. Rc3+ {[%emt 0:01:03]} Kb8 {[%emt 0:05:13]} 21. h5 {[%emt 0:00:21]} Bxd4 {[%emt 0:01:19]} (21... Be4 {is a better defense.} 22. f3 Bg6 23. hxg6 hxg6) 22. Rxd4 {[%emt 0:00:16] White is clearly winning.} Bf5 {[%emt 0:00:52]} 23. Re3 {[%emt 0:01:49]} f6 {[%emt 0:00:18]} 24. h6 {[%emt 0:00:01]} Ka7 {[%emt 0:04:43]} 25. hxg7 {[%emt 0:00:25]} Nc6 {[%emt 0:02:37] [#]} 26. Rxd5 $3 {[%emt 0:01:12][%mdl 512]} fxg5 {[%emt 0:00:40]} 27. Rxe8 {[%emt 0:00:38]} Rxe8 {[%emt 0:00:07]} 28. Be3+ {[%emt 0:00:14] Weighted Error Value: White=0.02 (flawless) /Black=0.57} 1-0

[Event "Prague Festival Open 2022"]
[Site "Prague"]
[Date "2022.06.11"]
[Round "2.9"]
[White "Frederic, Clement"]
[Black "Stremavicius, Titas"]
[Result "0-1"]
[ECO "B30"]
[WhiteElo "2216"]
[BlackElo "2508"]
[Annotator "TA"]
[PlyCount "42"]
[EventDate "2022.06.10"]
[EventType "swiss"]
[EventCountry "CZE"]
[SourceTitle "playchess.com"]
[Source "ChessBase"]
[SourceQuality "1"]
[TimeControl "40/5400+30:1800+30"]

{[%evp 9,42,52,44,49,44,42,28,0,8,0,0,0,0,2,2,-94,33,-127,-110,-145,-99,-258,-234,-376,-244,-653,-655,-905,-458,-1774,-798,-789,-789,-720,-629]} 1. e4 {[%emt 0:00:04]} c5 {[%emt 0:00:13]} 2. Nf3 {[%emt 0:00:05]} Nc6 {[%emt 0:00:08]} 3. Bb5 {[%emt 0:00:03]} e5 {[%emt 0:00:13]} 4. O-O {[%emt 0:01:06]} Bd6 {[%emt 0:00:05]} 5. c3 {[%emt 0:06:05]} a6 {[%emt 0:00:08]} 6. Ba4 {[%emt 0:00:30] B30: Sicilian: 2...Nc6 3 Bb5, lines without ...g6.} b5 {[%emt 0:00:10]} 7. Bc2 {[%emt 0:00:04] 7.Bc2 scores better than 7.Bb3.} Nge7 {[%emt 0:00:21]} 8. d4 {[%emt 0:00:24] White has an edge.} (8. d3 {with more complications.} Bc7 9. d4 cxd4 10. cxd4 exd4 11. Nxd4 O-O 12. Nc3) 8... cxd4 {[%emt 0:00:09]} 9. cxd4 {[%emt 0:00:07]} (9. a4 {feels hotter.} b4 10. cxd4 Nxd4 11. Nxd4 exd4 12. Nd2) 9... Nxd4 {[%emt 0:00:09]} 10. Nxd4 {[%emt 0:00:57]} exd4 {[%emt 0:00:08]} 11. Qxd4 {[%emt 0:03:52]} Qc7 {[%emt 0:00:09][%csl LRc2,LRh2] [#]} 12. Qxg7 $146 {[%emt 0:09:32]} (12. h3 $1 $11) ({Predecessor:} 12. Qd3 Bxh2+ 13. Kh1 Bf4 14. Nc3 Bxc1 15. Raxc1 Qe5 16. f4 Qh5+ 17. Kg1 O-O 18. Rf3 {1-0 (29) Jones,G (2702)-Vidit,S (2707) Hengshui 2019}) 12... Bxh2+ $17 {[%emt 0:01:56]} ({But not} 12... Rg8 $6 13. Qc3 $11) 13. Kh1 {[%emt 0:00:03] [#]} Be5 $1 {[%emt 0:00:12]} 14. Qg5 {[%emt 0:00:10]} Rg8 {[%emt 0:00:12]} 15. Qd2 {[%emt 0:00:25] Now White is beyond hope.} (15. Qh5 $17) 15... Bb7 $19 {[%emt 0:01:00]} 16. Nc3 {[%emt 0:08:42]} (16. f4 $142 Bd4 17. Nc3) 16... O-O-O $40 {[%emt 0:17:57][%mdl 128] ...Rg4 is the strong threat. Black has strong attack.} 17. Nd5 $2 {[%emt 0:14:34]} (17. Qe2 f5 18. f3) 17... Nxd5 {[%emt 0:00:31] Black is clearly winning.} 18. exd5 {[%emt 0:00:05]} Rg4 {[%emt 0:00:19] ( -> ...Rh4+)} 19. Bf5 {[%emt 0:01:34]} (19. Re1 $142 Rdg8 20. Be4 (20. g3 $2 Bxg3 21. Re4 Bxf2 $19) 20... Rh4+ 21. Kg1 Bh2+ 22. Kf1 Qc4+ 23. Qe2 Rxe4 24. Qxc4+ Rxc4 25. g3) 19... Qc4 {[%emt 0:15:51]} (19... Rh4+ $142 20. Bh3 Rg8) 20. Qd3 {[%emt 0:10:58]} Qxd3 {[%emt 0:01:21]} 21. Bxd3 {[%emt 0:00:08]} Bxd5 {[%emt 0:00:19] Weighted Error Value: White=1.30/Black=0.61} 0-1

[Event "Prague Festival Open 2022"]
[Site "Prague"]
[Date "2022.06.11"]
[Round "2.10"]
[White "Garriga Cazorla, Pere"]
[Black "Kratochvil, Vit"]
[Result "1-0"]
[ECO "E43"]
[WhiteElo "2495"]
[BlackElo "2220"]
[Annotator "TA"]
[PlyCount "67"]
[EventDate "2022.06.10"]
[EventType "swiss"]
[EventCountry "CZE"]
[SourceTitle "playchess.com"]
[Source "ChessBase"]
[SourceQuality "1"]
[TimeControl "40/5400+30:1800+30"]

{[%evp 23,66,7,33,0,47,45,49,43,84,90,256,271,245,252,287,283,290,291,399,404,387,413,452,443,427,417,771,812,792,761,967,980,962,917,2433,1175,2243,2122,29996,29995,29997,1485,29998,29999,29999]} 1. d4 {[%emt 0:00:04]} Nf6 {[%emt 0:00:14]} 2. c4 {[%emt 0:00:23]} e6 {[%emt 0:01:00]} 3. Nc3 {[%emt 0:00:16]} Bb4 {[%emt 0:00:34]} 4. Nf3 {[%emt 0:01:35]} b6 {[%emt 0:04:04]} 5. e3 {[%emt 0:00:28]} Bb7 {[%emt 0:02:02]} 6. Bd3 {[%emt 0:01:26]} O-O {[%emt 0:00:57]} 7. O-O {[%emt 0:00:38]} c5 {[%emt 0:03:47]} 8. Na4 {[%emt 0:02:28]} cxd4 {[%emt 0:14:57]} 9. exd4 {[%emt 0:06:24]} Be7 {[%emt 0:01:36]} 10. a3 {[%emt 0:01:51]} Bxf3 {[%emt 0:37:25]} 11. Qxf3 {[%emt 0:00:48]} Nc6 {[%emt 0:00:04]} 12. Be3 {[%emt 0:21:38]} d5 {[%emt 0:01:19]} 13. Rac1 {[%emt 0:11:36][%cal Ba1c1,Bc1c4,Bc4c2][%mdl 32] Strongly threatening cxd5. E43: Nimzo-Indian: Rubinstein: 4...b6.} dxc4 {[%emt 0:11:44]} (13... e5 $11 14. cxd5 Nxd4 15. Bxd4 exd4) 14. Rxc4 $14 {[%emt 0:02:23]} Na5 {[%emt 0:00:43] aiming for ...b5.} 15. Rc2 {[%emt 0:00:37] [#] White is slightly better.} Qd5 $146 {[%emt 0:07:26]} ({Predecessor:} 15... Rc8 16. Rfc1 Rxc2 17. Rxc2 Nb3 18. Nc3 Nxd4 19. Bxd4 Qxd4 20. Nb5 Qe5 21. Nxa7 Qe1+ {0-1 (41) Duhayon,Y (2237)-Gozzoli,Y (2503) Cappelle la Grande 2009}) 16. b4 {[%emt 0:05:27]} Qd7 $2 {[%emt 0:04:09]} (16... Qxf3 $16 17. gxf3 b5) 17. Nc3 $18 {[%emt 0:04:10][%cal Ba4c3,Bc3e2,Be2d4,Bd4c6][%mdl 32]} ({Stronger than} 17. bxa5 Qxa4 18. axb6 axb6 $11) 17... Nc6 {[%emt 0:05:18] [#]} 18. Ne2 {[%emt 0:01:03]} Ne5 {[%emt 0:01:32]} 19. dxe5 {[%emt 0:00:24][%cal Bd4e5,Be5f6,Bf6e7][%mdl 32]} Qxd3 {[%emt 0:00:05] [#]} 20. exf6 $1 {[%emt 0:01:04]} Qxc2 {[%emt 0:00:41]} (20... Bxf6 21. Nd4) 21. fxe7 {[%emt 0:00:06]} Rfe8 {[%emt 0:00:06]} 22. Nd4 {[%emt 0:00:04] Prevents Qf5.} Qc7 {[%emt 0:01:09]} 23. Nc6 {[%emt 0:00:47]} Rac8 {[%emt 0:00:30]} 24. b5 {[%emt 0:00:17]} ({Resist} 24. Rc1 Qd6 25. h3 Qd5 26. Qxd5 exd5 $18) 24... a6 {[%emt 0:00:32]} (24... Rxe7 $142 25. Nxe7+ Qxe7) 25. a4 {[%emt 0:00:05][%cal Ba3a4,Ba4b5][%mdl 32]} axb5 {[%emt 0:00:31]} 26. axb5 {[%emt 0:00:05]} f6 {[%emt 0:00:27]} 27. Rd1 {[%emt 0:00:39]} Ra8 {[%emt 0:00:26]} 28. Qe4 {[%emt 0:00:51]} e5 {[%emt 0:00:33]} 29. Qd5+ {[%emt 0:01:09]} Kh8 {[%emt 0:00:05]} 30. Nd8 {[%emt 0:00:44] Nf7+ would kill now.} Rc8 {[%emt 0:00:15]} 31. Nf7+ {[%emt 0:00:08]} Kg8 {[%emt 0:00:03]} 32. Nh6+ {[%emt 0:00:06]} Kh8 {[%emt 0:00:03] [#]} 33. Qg8+ $3 {[%emt 0:00:04][%mdl 512]} Rxg8 {[%emt 0:00:03]} 34. Nf7# {[%emt 0:00:05] Black did not feel at home in the position after the opening.  Weighted Error Value: White=0.03 (flawless) /Black=0.99} 1-0

[Event "Prague Festival Open 2022"]
[Site "Prague"]
[Date "2022.06.11"]
[Round "2.11"]
[White "Bujnoch, Radek"]
[Black "Petr, Martin"]
[Result "1/2-1/2"]
[ECO "D45"]
[WhiteElo "2218"]
[BlackElo "2488"]
[Annotator "TA"]
[PlyCount "97"]
[EventDate "2022.06.10"]
[EventType "swiss"]
[EventCountry "CZE"]
[SourceTitle "playchess.com"]
[Source "ChessBase"]
[SourceQuality "1"]
[TimeControl "40/5400+30:1800+30"]

{[%evp 13,97,13,17,15,12,23,24,20,21,17,11,18,24,16,25,35,61,55,62,52,58,73,80,73,79,86,81,74,226,248,232,216,173,64,181,182,185,131,150,115,114,115,147,147,158,155,160,162,157,160,212,218,206,202,195,197,267,262,241,78,74,74,78,78,73,76,76,85,96,98,123,120,121,57,50,8,8,8,8,8,8,8,10,0,8,0]} 1. d4 {[%emt 0:00:03]} d5 {[%emt 0:02:19]} 2. c4 {[%emt 0:00:06]} e6 {[%emt 0:00:06]} 3. Nf3 {[%emt 0:00:07][%cal Bg1f3,Bf3d2,Bd2c4,Bc4d6][%mdl 32]} c6 {[%emt 0:00:07]} 4. e3 {[%emt 0:00:27]} Nf6 {[%emt 0:00:56]} 5. Nc3 {[%emt 0:00:16]} Nbd7 {[%emt 0:00:08]} 6. Be2 {[%emt 0:00:12]} dxc4 {[%emt 0:01:44]} 7. a4 $1 {[%emt 0:00:13][%mdl 4] is recently more successful than 7.Bxc4.} Bd6 {[%emt 0:03:09]} 8. Nd2 {[%emt 0:00:14] D45: Semi-Slav: 5 e3.} O-O {[%emt 0:03:21]} 9. Nxc4 {[%emt 0:00:18]} Bc7 {[%emt 0:01:12]} 10. b3 {[%emt 0:00:07] White has an edge.} e5 {[%emt 0:10:29]} 11. Ba3 {[%emt 0:00:30]} Re8 {[%emt 0:00:21]} 12. O-O {[%emt 0:00:08]} exd4 {[%emt 0:02:20]} 13. Qxd4 {[%emt 0:00:08]} Nb6 {[%emt 0:05:49]} 14. Nd6 {[%emt 0:14:10] [#]} Re6 $146 {[%emt 0:01:48][%cal Rc7d6]} ({Predecessor:} 14... Bxd6 15. Bxd6 Be6 16. a5 Nbd5 17. Nxd5 Bxd5 18. Bc5 Nd7 19. Bd6 Re4 20. Qc3 Qg5 {½-½ (40) Mishra,A (2408)-Nagy,G (2511) Budapest 2021}) 15. Rad1 {[%emt 0:14:38] White is much more active.} Nbd5 {[%emt 0:00:17] ...Nxc3 is the strong threat.} 16. Nxd5 {[%emt 0:00:50]} cxd5 {[%emt 0:09:25]} 17. Nxc8 {[%emt 0:02:05]} Rxc8 {[%emt 0:00:06]} 18. Bf3 {[%emt 0:16:27][%cal Rf3d5]} (18. Qxa7 $2 Bb6 19. Qxb7 Rc7 $19) 18... Be5 {[%emt 0:00:46]} 19. Qxa7 {[%emt 0:26:28]} Ra8 {[%emt 0:04:47]} 20. Qc5 {[%emt 0:01:00][%cal Rf3d5]} Nd7 $2 {[%emt 0:04:35]} (20... Rc8 $16 21. Qb5 Rb6) 21. Qxd5 $18 {[%emt 0:10:42]} Bxh2+ {[%emt 0:00:08]} 22. Kh1 {[%emt 0:07:18]} (22. Kxh2 Qh4+ 23. Kg1 Rh6 $11) 22... Rh6 {[%emt 0:03:33] ( -> ...Be5+)} 23. Bg4 {[%emt 0:00:15] This bishop pair is nice.} (23. Qxb7 {leads to mate.} Bd6+ 24. Kg1 Rh1+ $3 {[%mdl 512]} 25. Kxh1 Qh4+ 26. Kg1 Qh2#) ({And not} 23. Bh5 Qh4 24. Bxf7+ (24. Qxd7 $2 Be5+ 25. Qh3 Qxh5 $19) (24. Qxf7+ Kh8 $17) 24... Kh8 25. Qxd7 Bc7+ 26. Qh3 Qg5 $15) (23. g3 $1 $18 {aiming for Kg2.} Bxg3+ 24. Kg2 Rh2+ 25. Kg1) 23... Qb8 {[%emt 0:09:52]} 24. Bh3 {[%emt 0:00:01]} Nf6 {[%emt 0:00:09]} 25. Qd4 {[%emt 0:02:39]} (25. Qc4 $18) 25... Be5 $16 {[%emt 0:02:18]} 26. Bd6 {[%emt 0:00:01]} Bxd6 {[%emt 0:05:05]} 27. Qxd6 {[%emt 0:00:01]} Ne4 {[%emt 0:00:08]} 28. Qxb8+ {[%emt 0:00:39]} Rxb8 {[%emt 0:00:04]} 29. Rd4 {[%emt 0:01:04]} Nc5 {[%emt 0:00:12]} 30. Rfd1 {[%emt 0:00:32] White wants to mate with Rd8+.} Kf8 {[%emt 0:00:30]} 31. Rb4 {[%emt 0:00:54] Inhibits Rb6.} Ke7 {[%emt 0:04:16]} (31... b6 $16 {was called for.} 32. Kg1 Re8) 32. Rd5 $18 {[%emt 0:00:45]} Rc6 {[%emt 0:01:13]} 33. Rb5 {[%emt 0:00:54]} b6 {[%emt 0:03:43]} 34. a5 {[%emt 0:00:37]} Na6 {[%emt 0:01:46] [#]} (34... Kf8 $142 35. Rxb6 Rcxb6 36. axb6 Ne4) 35. Rd7+ $1 {[%emt 0:00:51]} Kf8 {[%emt 0:00:07]} 36. Ra7 $2 {[%emt 0:01:40]} (36. Kh2 $18 {is more deadly.}) 36... bxa5 $16 {[%emt 0:00:10]} 37. Rxb8+ {[%emt 0:01:01]} Nxb8 {[%emt 0:00:06]} 38. Rxa5 {[%emt 0:00:08][%mdl 4096] Endgame KRB-KRN} Rb6 {[%emt 0:04:28] [#]} 39. Ra3 $1 {[%emt 0:00:02]} Na6 {[%emt 0:00:10]} 40. Bf5 {[%emt 0:01:15]} Nb4 {[%emt 0:00:54] Inhibits Bd3.} 41. g4 {[%emt 0:06:31]} Ke7 {[%emt 0:05:24]} 42. Kg2 {[%emt 0:00:26]} Kf6 {[%emt 0:00:28]} 43. f4 {[%emt 0:02:10]} ({Weaker is} 43. Bxh7 g6 $15) ({White should try} 43. Be4 $16) 43... h5 $1 $14 {[%emt 0:00:47]} 44. Ra5 {[%emt 0:15:04]} hxg4 $1 {[%emt 0:01:31] The position is equal.} 45. Bxg4 {[%emt 0:00:04]} Nc2 {[%emt 0:05:09][%csl LRb3,LRe3]} 46. Rf5+ {[%emt 0:00:33]} Ke7 {[%emt 0:00:44]} 47. Re5+ {[%emt 0:00:37]} Kf6 {[%emt 0:00:35]} 48. Rf5+ {[%emt 0:01:00]} Ke7 {[%emt 0:00:13]} 49. Re5+ {[%emt 0:00:05] Black escapes into a draw.  Weighted Error Value: White=0.12 (very precise) /Black=0.12 (very precise)} 1/2-1/2